Workbook

Sheet 28.04.2023
B1: Неделя: 04.01.2021-10.01.2021 (2 неделя 2021)
B2: МО: ОКТЯБРЬСКИЙ РАЙОН | G2: 1 | H2: 2 | I2: 3 | J2: 4 | K2: 5 | L2: 6 | M2: 7 | N2: 8 | O2: 9 | P2: 10 | Q2: 11 | R2: 12 | S2: 13 | T2: 14 | U2: 15 | V2: 16
F3: 2023-04-28 | G3: АО "Октябрьская аптека" | H3: АО Октябрьская аптека | I3: АО Октябрьская аптека | J3: АО Октябрьская аптека | K3: АО Октябрьская аптека | L3: АО "Няганская аптека" | M3: АО "Няганская аптека" | N3: ООО "Прогресс" | O3: ООО "Волосе-вич" | P3: Аптека | Q3: ООО "Ригла-Сургут" | R3: ИП Бобрик Г.В | S3: ИП Бобрик Г.В | T3: Зеленая Аптека | U3: ООО "МПП УрСиб" | V3: ИП Простякова И.А.
B4: МНН препарата | D4: Торговое наименование | F4: Октябрьский район (свод) | G4: пгт. Приобье, ул.Югорская, д.1 | H4: пгт. Талинка, мкр.Центральный, д. 45 | I4: пгт.Октябрьское, ул.Ленина, д.15 | J4: п.Унъюган, ул.Газпромовская, д.22 | K4: с.Перегребное, ул.Советская, д 25 | L4: пгт.Талинка, 1 микрорайон, д.44 | M4: п.Талинка, Центральный микрорайон, д.12 | N4: с.Малый Атлым, ул.Московская, д.2В | O4: п.Унъюган, ул.Тюменская, д.53Б | P4: пгт Андра, мкр Набережный, д 45Б | Q4: пгт.Приобье, ул. Центральная, д.1а | R4: пгт.Октябрьское Октябрьский р-н ул.Ленина д.46 | S4: пгт.Октябрьское Октябрьский р-н ул.50 лет Победы д.11 | T4: пгт. Приобье, ул. Центральная 3, Пионеров 6б | U4: Октябрьский р-н, п.Унъюган, ул. 40 лет Победы д.16а | V4: с. Перегребное, ул. Советская, д.28
B5: МНН препарата | C5: № п/п | D5: Торговое наименование | E5: Телефон / Данные группы показателей | G5: 83467832813 | H5: 83467245071 | I5: 83467821490 | J5: 83467248362 | K5: 83467838018 | L5: 83467249392 | M5: 83467249105 | N5: 89088816955 | O5: 89227900338 | P5: - | Q5: 83467851847 | R5: 83467821480 | S5: 89519655659 | T5: - | U5: - | V5: 83467838718
A6: 1 | B6: Интерферон альфа* | C6: 1 | D6: Альфаферон | E6: Минимальная цена
A7: Интерферон альфа * | B7: Интерферон альфа * | C7: 1 | D7: Альфаферон | E7: Максимальная цена
A8: Интерферон альфа * | B8: Интерферон альфа * | C8: 1 | D8: Альфаферон | E8: Кол-во упаковок | F8: =SUM(G8:V8) -> 0
A9: Интерферон альфа * | B9: Интерферон альфа * | C9: 1 | D9: Альфаферон | E9: Форма выпуска
A10: Интерферон альфа * | B10: Интерферон альфа * | C10: 2 | D10: Вэллферон | E10: Минимальная цена
A11: Интерферон альфа * | B11: Интерферон альфа * | C11: 2 | D11: Вэллферон | E11: Максимальная цена
A12: Интерферон альфа * | B12: Интерферон альфа * | C12: 2 | D12: Вэллферон | E12: Кол-во упаковок | F12: =SUM(G12:V12) -> 0
A13: Интерферон альфа * | B13: Интерферон альфа * | C13: 2 | D13: Вэллферон | E13: Форма выпуска
A14: Интерферон альфа * | B14: Интерферон альфа * | C14: 3 | D14: Интерферон альфа-2b человеческий рекомбинантный | E14: Минимальная цена | F14: 346 | O14: 346
A15: Интерферон альфа * | B15: Интерферон альфа * | C15: 3 | D15: Интерферон альфа-2b человеческий рекомбинантный | E15: Максимальная цена | F15: 346 | O15: 346
A16: Интерферон альфа * | B16: Интерферон альфа * | C16: 3 | D16: Интерферон альфа-2b человеческий рекомбинантный | E16: Кол-во упаковок | F16: =SUM(G16:V16) -> 2 | O16: 2
A17: Интерферон альфа * | B17: Интерферон альфа * | C17: 3 | D17: Интерферон альфа-2b человеческий рекомбинантный | E17: Форма выпуска | F17: свечи | O17: свечи
A18: Интерферон альфа * | B18: Интерферон альфа * | C18: 4 | D18: Интерферон лейкоцитарный человеческий жидкий | E18: Минимальная цена
A19: Интерферон альфа * | B19: Интерферон альфа * | C19: 4 | D19: Интерферон лейкоцитарный человеческий жидкий | E19: Максимальная цена
A20: Интерферон альфа * | B20: Интерферон альфа * | C20: 4 | D20: Интерферон лейкоцитарный человеческий жидкий | E20: Кол-во упаковок | F20: =SUM(G20:V20) -> 0
A21: Интерферон альфа * | B21: Интерферон альфа * | C21: 4 | D21: Интерферон лейкоцитарный человеческий жидкий | E21: Форма выпуска
A22: Интерферон альфа * | B22: Интерферон альфа * | C22: 5 | D22: Интерферон лейкоцитарный человеческий сухой | E22: Минимальная цена
A23: Интерферон альфа * | B23: Интерферон альфа * | C23: 5 | D23: Интерферон лейкоцитарный человеческий сухой | E23: Максимальная цена
A24: Интерферон альфа * | B24: Интерферон альфа * | C24: 5 | D24: Интерферон лейкоцитарный человеческий сухой | E24: Кол-во упаковок | F24: =SUM(G24:V24) -> 0
A25: Интерферон альфа * | B25: Интерферон альфа * | C25: 5 | D25: Интерферон лейкоцитарный человеческий сухой | E25: Форма выпуска
A26: Интерферон альфа * | B26: Интерферон альфа * | C26: 6 | D26: Интерферон человеческий лейкоцитарный | E26: Минимальная цена | F26: 399 | V26: 399
A27: Интерферон альфа * | B27: Интерферон альфа * | C27: 6 | D27: Интерферон человеческий лейкоцитарный | E27: Максимальная цена | F27: 721 | V27: 721
A28: Интерферон альфа * | B28: Интерферон альфа * | C28: 6 | D28: Интерферон человеческий лейкоцитарный | E28: Кол-во упаковок | F28: =SUM(G28:V28) -> 10 | V28: 10
A29: Интерферон альфа * | B29: Интерферон альфа * | C29: 6 | D29: Интерферон человеческий лейкоцитарный | E29: Форма выпуска | F29: таблетки | V29: таблетки
A30: Интерферон альфа * | B30: Интерферон альфа * | C30: 7 | D30: Интерферон человеческий лейкоцитарный в свечах | E30: Минимальная цена
A31: Интерферон альфа * | B31: Интерферон альфа * | C31: 7 | D31: Интерферон человеческий лейкоцитарный в свечах | E31: Максимальная цена
A32: Интерферон альфа * | B32: Интерферон альфа * | C32: 7 | D32: Интерферон человеческий лейкоцитарный в свечах | E32: Кол-во упаковок | F32: =SUM(G32:V32) -> 0
A33: Интерферон альфа * | B33: Интерферон альфа * | C33: 7 | D33: Интерферон человеческий лейкоцитарный в свечах | E33: Форма выпуска
A34: Интерферон альфа * | B34: Интерферон альфа * | C34: 8 | D34: Интерферон человеческий лейкоцитарный концентрированный жидкий | E34: Минимальная цена
A35: Интерферон альфа * | B35: Интерферон альфа * | C35: 8 | D35: Интерферон человеческий лейкоцитарный концентрированный жидкий | E35: Максимальная цена
A36: Интерферон альфа * | B36: Интерферон альфа * | C36: 8 | D36: Интерферон человеческий лейкоцитарный концентрированный жидкий | E36: Кол-во упаковок | F36: =SUM(G36:V36) -> 0
A37: Интерферон альфа * | B37: Интерферон альфа * | C37: 8 | D37: Интерферон человеческий лейкоцитарный концентрированный жидкий | E37: Форма выпуска
A38: Интерферон альфа * | B38: Интерферон альфа * | C38: 9 | D38: Интерферон человеческий рекомбинантный альфа-2 (полуфабрикат) | E38: Минимальная цена
A39: Интерферон альфа * | B39: Интерферон альфа * | C39: 9 | D39: Интерферон человеческий рекомбинантный альфа-2 (полуфабрикат) | E39: Максимальная цена
A40: Интерферон альфа * | B40: Интерферон альфа * | C40: 9 | D40: Интерферон человеческий рекомбинантный альфа-2 (полуфабрикат) | E40: Кол-во упаковок | F40: =SUM(G40:V40) -> 0
A41: Интерферон альфа * | B41: Интерферон альфа * | C41: 9 | D41: Интерферон человеческий рекомбинантный альфа-2 (полуфабрикат) | E41: Форма выпуска
A42: Интерферон альфа * | B42: Интерферон альфа * | C42: 10 | D42: Интерферона альфа-2 рекомбинантного мазь на гидрогелевой основе | E42: Минимальная цена | F42: 86 | O42: 86
A43: Интерферон альфа * | B43: Интерферон альфа * | C43: 10 | D43: Интерферона альфа-2 рекомбинантного мазь на гидрогелевой основе | E43: Максимальная цена | F43: 86 | O43: 86
A44: Интерферон альфа * | B44: Интерферон альфа * | C44: 10 | D44: Интерферона альфа-2 рекомбинантного мазь на гидрогелевой основе | E44: Кол-во упаковок | F44: =SUM(G44:V44) -> 3 | O44: 3
A45: Интерферон альфа * | B45: Интерферон альфа * | C45: 10 | D45: Интерферона альфа-2 рекомбинантного мазь на гидрогелевой основе | E45: Форма выпуска | F45: мазь | O45: мазь
A46: Интерферон альфа * | B46: Интерферон альфа * | C46: 11 | D46: Инферон | E46: Минимальная цена
A47: Интерферон альфа * | B47: Интерферон альфа * | C47: 11 | D47: Инферон | E47: Максимальная цена
A48: Интерферон альфа * | B48: Интерферон альфа * | C48: 11 | D48: Инферон | E48: Кол-во упаковок | F48: =SUM(G48:V48) -> 0
A49: Интерферон альфа * | B49: Интерферон альфа * | C49: 11 | D49: Инферон | E49: Форма выпуска
A50: Интерферон альфа * | B50: Интерферон альфа * | C50: 12 | D50: Локферон | E50: Минимальная цена
A51: Интерферон альфа * | B51: Интерферон альфа * | C51: 12 | D51: Локферон | E51: Максимальная цена
A52: Интерферон альфа * | B52: Интерферон альфа * | C52: 12 | D52: Локферон | E52: Кол-во упаковок | F52: =SUM(G52:V52) -> 0
A53: Интерферон альфа * | B53: Интерферон альфа * | C53: 12 | D53: Локферон | E53: Форма выпуска
A54: 2 | B54: Интерферон альфа-2b | C54: 13 | D54: Альтевир | E54: Минимальная цена
B55: Интерферон альфа-2b | C55: 13 | D55: Альтевир | E55: Максимальная цена
B56: Интерферон альфа-2b | C56: 13 | D56: Альтевир | E56: Кол-во упаковок | F56: =SUM(G56:V56) -> 0
B57: Интерферон альфа-2b | C57: 13 | D57: Альтевир | E57: Форма выпуска
B58: Интерферон альфа-2b | C58: 14 | D58: Альфарона | E58: Минимальная цена
B59: Интерферон альфа-2b | C59: 14 | D59: Альфарона | E59: Максимальная цена
B60: Интерферон альфа-2b | C60: 14 | D60: Альфарона | E60: Кол-во упаковок | F60: =SUM(G60:V60) -> 0
B61: Интерферон альфа-2b | C61: 14 | D61: Альфарона | E61: Форма выпуска
B62: Интерферон альфа-2b | C62: 15 | D62: Бинноферон альфа | E62: Минимальная цена
B63: Интерферон альфа-2b | C63: 15 | D63: Бинноферон альфа | E63: Максимальная цена
B64: Интерферон альфа-2b | C64: 15 | D64: Бинноферон альфа | E64: Кол-во упаковок | F64: =SUM(G64:V64) -> 0
B65: Интерферон альфа-2b | C65: 15 | D65: Бинноферон альфа | E65: Форма выпуска
B66: Интерферон альфа-2b | C66: 16 | D66: Виферон | E66: Минимальная цена | F66: 242 | G66: 335 | H66: 335 | I66: 252 | J66: 325 | K66: 340 | L66: 350 | N66: 372 | O66: 314 | Q66: 242 | V66: 394
B67: Интерферон альфа-2b | C67: 16 | D67: Виферон | E67: Максимальная цена | F67: 1431 | G67: 335 | H67: 771 | I67: 817 | J67: 325 | K67: 340 | L67: 538 | N67: 521 | O67: 314 | Q67: 1431 | V67: 1246
B68: Интерферон альфа-2b | C68: 16 | D68: Виферон | E68: Кол-во упаковок | F68: =SUM(G68:V68) -> 70 | G68: 2 | H68: 5 | I68: 14 | J68: 2 | K68: 1 | L68: 11 | N68: 8 | O68: 4 | Q68: 18 | V68: 5
B69: Интерферон альфа-2b | C69: 16 | D69: Виферон | E69: Форма выпуска | F69: суппозитории, мазь, гель, свечи | G69: суппозитории | H69: суппозитории | I69: суппозитории, мазь | J69: суппозитории | K69: суппозитории | L69: гель, свечи | N69: свечи | O69: суппозитории | Q69: гель, мазь, свечи | V69: свечи
B70: Интерферон альфа-2b | C70: 17 | D70: Гиаферон | E70: Минимальная цена
B71: Интерферон альфа-2b | C71: 17 | D71: Гиаферон | E71: Максимальная цена
B72: Интерферон альфа-2b | C72: 17 | D72: Гиаферон | E72: Кол-во упаковок | F72: =SUM(G72:V72) -> 0
B73: Интерферон альфа-2b | C73: 17 | D73: Гиаферон | E73: Форма выпуска
B74: Интерферон альфа-2b | C74: 18 | D74: Гриппферон | E74: Минимальная цена | F74: 278 | G74: 330 | H74: 394 | I74: 335 | J74: 315 | K74: 345 | L74: 340 | N74: 349 | O74: 278 | Q74: 357
B75: Интерферон альфа-2b | C75: 18 | D75: Гриппферон | E75: Максимальная цена | F75: 394 | G75: 330 | H75: 394 | I75: 335 | J75: 315 | K75: 350 | L75: 345 | N75: 351 | O75: 278 | Q75: 362
B76: Интерферон альфа-2b | C76: 18 | D76: Гриппферон | E76: Кол-во упаковок | F76: =SUM(G76:V76) -> 113 | G76: 1 | H76: 14 | I76: 22 | J76: 10 | K76: 29 | L76: 14 | N76: 5 | O76: 5 | Q76: 13
B77: Интерферон альфа-2b | C77: 18 | D77: Гриппферон | E77: Форма выпуска | F77: капли назальные, спрей назальный | G77: капли назальные | H77: капли назальные | I77: капли назальные | J77: капли назальные | K77: капли назальные | L77: капли, спрей | N77: капли | O77: капли | Q77: капли
B78: Интерферон альфа-2b | C78: 19 | D78: Интерфераль | E78: Минимальная цена
B79: Интерферон альфа-2b | C79: 19 | D79: Интерфераль | E79: Максимальная цена
B80: Интерферон альфа-2b | C80: 19 | D80: Интерфераль | E80: Кол-во упаковок | F80: =SUM(G80:V80) -> 0
B81: Интерферон альфа-2b | C81: 19 | D81: Интерфераль | E81: Форма выпуска
B82: Интерферон альфа-2b | C82: 20 | D82: Интрон А | E82: Минимальная цена
B83: Интерферон альфа-2b | C83: 20 | D83: Интрон А | E83: Максимальная цена
B84: Интерферон альфа-2b | C84: 20 | D84: Интрон А | E84: Кол-во упаковок | F84: =SUM(G84:V84) -> 0
B85: Интерферон альфа-2b | C85: 20 | D85: Интрон А | E85: Форма выпуска
B86: Интерферон альфа-2b | C86: 21 | D86: Инфагель | E86: Минимальная цена | F86: 96 | H86: 148 | N86: 154 | O86: 96
B87: Интерферон альфа-2b | C87: 21 | D87: Инфагель | E87: Максимальная цена | F87: 154 | H87: 148 | N87: 154 | O87: 96
B88: Интерферон альфа-2b | C88: 21 | D88: Инфагель | E88: Кол-во упаковок | F88: =SUM(G88:V88) -> 6 | H88: 1 | N88: 1 | O88: 4
B89: Интерферон альфа-2b | C89: 21 | D89: Инфагель | E89: Форма выпуска | F89: мазь | H89: мазь | N89: мазь | O89: мазь
B90: Интерферон альфа-2b | C90: 22 | D90: Реаферон-ЕС | E90: Минимальная цена
B91: Интерферон альфа-2b | C91: 22 | D91: Реаферон-ЕС | E91: Максимальная цена
B92: Интерферон альфа-2b | C92: 22 | D92: Реаферон-ЕС | E92: Кол-во упаковок | F92: =SUM(G92:V92) -> 0
B93: Интерферон альфа-2b | C93: 22 | D93: Реаферон-ЕС | E93: Форма выпуска
B94: Интерферон альфа-2b | C94: 23 | D94: Реаферон-ЕС-Липинт | E94: Минимальная цена
B95: Интерферон альфа-2b | C95: 23 | D95: Реаферон-ЕС-Липинт | E95: Максимальная цена
B96: Интерферон альфа-2b | C96: 23 | D96: Реаферон-ЕС-Липинт | E96: Кол-во упаковок | F96: =SUM(G96:V96) -> 0
B97: Интерферон альфа-2b | C97: 23 | D97: Реаферон-ЕС-Липинт | E97: Форма выпуска
B98: Интерферон альфа-2b | C98: 24 | D98: Реаферон-ЛИПИНТ | E98: Минимальная цена
B99: Интерферон альфа-2b | C99: 24 | D99: Реаферон-ЛИПИНТ | E99: Максимальная цена
B100: Интерферон альфа-2b | C100: 24 | D100: Реаферон-ЛИПИНТ | E100: Кол-во упаковок | F100: =SUM(G100:V100) -> 0
B101: Интерферон альфа-2b | C101: 24 | D101: Реаферон-ЛИПИНТ | E101: Форма выпуска
A102: 3 | B102: Интерферон альфа-2b человеческий рекомбинант-ный | C102: 25 | D102: Интерфераль | E102: Минимальная цена
A103: Интерферон альфа-2b человеческий рекомбинантный | B103: Интерферон альфа-2b человеческий рекомбинантный | C103: 25 | D103: Интерфераль | E103: Максимальная цена
A104: Интерферон альфа-2b человеческий рекомбинантный | B104: Интерферон альфа-2b человеческий рекомбинантный | C104: 25 | D104: Интерфераль | E104: Кол-во упаковок | F104: =SUM(G104:V104) -> 0
A105: Интерферон альфа-2b человеческий рекомбинантный | B105: Интерферон альфа-2b человеческий рекомбинантный | C105: 25 | D105: Интерфераль | E105: Форма выпуска
A106: Интерферон альфа-2b человеческий рекомбинантный | B106: Интерферон альфа-2b человеческий рекомбинантный | C106: 26 | D106: Интерферон альфа-2 человеческий рекомбинантный | E106: Минимальная цена
A107: Интерферон альфа-2b человеческий рекомбинантный | B107: Интерферон альфа-2b человеческий рекомбинантный | C107: 26 | D107: Интерферон альфа-2 человеческий рекомбинантный | E107: Максимальная цена
A108: Интерферон альфа-2b человеческий рекомбинантный | B108: Интерферон альфа-2b человеческий рекомбинантный | C108: 26 | D108: Интерферон альфа-2 человеческий рекомбинантный | E108: Кол-во упаковок | F108: =SUM(G108:V108) -> 0
A109: Интерферон альфа-2b человеческий рекомбинантный | B109: Интерферон альфа-2b человеческий рекомбинантный | C109: 26 | D109: Интерферон альфа-2 человеческий рекомбинантный | E109: Форма выпуска
A110: Интерферон альфа-2b человеческий рекомбинантный | B110: Интерферон альфа-2b человеческий рекомбинантный | C110: 27 | D110: Интерферон альфа-2 человеческий рекомбинантный (ИФН альфа-2 чр) | E110: Минимальная цена
A111: Интерферон альфа-2b человеческий рекомбинантный | B111: Интерферон альфа-2b человеческий рекомбинантный | C111: 27 | D111: Интерферон альфа-2 человеческий рекомбинантный (ИФН альфа-2 чр) | E111: Максимальная цена
A112: Интерферон альфа-2b человеческий рекомбинантный | B112: Интерферон альфа-2b человеческий рекомбинантный | C112: 27 | D112: Интерферон альфа-2 человеческий рекомбинантный (ИФН альфа-2 чр) | E112: Кол-во упаковок | F112: =SUM(G112:V112) -> 0
A113: Интерферон альфа-2b человеческий рекомбинантный | B113: Интерферон альфа-2b человеческий рекомбинантный | C113: 27 | D113: Интерферон альфа-2 человеческий рекомбинантный (ИФН альфа-2 чр) | E113: Форма выпуска
A114: Интерферон альфа-2b человеческий рекомбинантный | B114: Интерферон альфа-2b человеческий рекомбинантный | C114: 28 | D114: Интерферон альфа-2b человеческий рекомбинантный | E114: Минимальная цена
A115: Интерферон альфа-2b человеческий рекомбинантный | B115: Интерферон альфа-2b человеческий рекомбинантный | C115: 28 | D115: Интерферон альфа-2b человеческий рекомбинантный | E115: Максимальная цена
A116: Интерферон альфа-2b человеческий рекомбинантный | B116: Интерферон альфа-2b человеческий рекомбинантный | C116: 28 | D116: Интерферон альфа-2b человеческий рекомбинантный | E116: Кол-во упаковок | F116: =SUM(G116:V116) -> 0
A117: Интерферон альфа-2b человеческий рекомбинантный | B117: Интерферон альфа-2b человеческий рекомбинантный | C117: 28 | D117: Интерферон альфа-2b человеческий рекомбинантный | E117: Форма выпуска
A118: Интерферон альфа-2b человеческий рекомбинантный | B118: Интерферон альфа-2b человеческий рекомбинантный | C118: 29 | D118: Интерферон альфа-2b человеческий рекомбинантный (рчИФН-а2b) | E118: Минимальная цена
A119: Интерферон альфа-2b человеческий рекомбинантный | B119: Интерферон альфа-2b человеческий рекомбинантный | C119: 29 | D119: Интерферон альфа-2b человеческий рекомбинантный (рчИФН-а2b) | E119: Максимальная цена
A120: Интерферон альфа-2b человеческий рекомбинантный | B120: Интерферон альфа-2b человеческий рекомбинантный | C120: 29 | D120: Интерферон альфа-2b человеческий рекомбинантный (рчИФН-а2b) | E120: Кол-во упаковок | F120: =SUM(G120:V120) -> 0
A121: Интерферон альфа-2b человеческий рекомбинантный | B121: Интерферон альфа-2b человеческий рекомбинантный | C121: 29 | D121: Интерферон альфа-2b человеческий рекомбинантный (рчИФН-а2b) | E121: Форма выпуска
A122: Интерферон альфа-2b человеческий рекомбинантный | B122: Интерферон альфа-2b человеческий рекомбинантный | C122: 30 | D122: Интерферон альфа-2b человеческий рекомбинантный безметиониновый | E122: Минимальная цена
A123: Интерферон альфа-2b человеческий рекомбинантный | B123: Интерферон альфа-2b человеческий рекомбинантный | C123: 30 | D123: Интерферон альфа-2b человеческий рекомбинантный безметиониновый | E123: Максимальная цена
A124: Интерферон альфа-2b человеческий рекомбинантный | B124: Интерферон альфа-2b человеческий рекомбинантный | C124: 30 | D124: Интерферон альфа-2b человеческий рекомбинантный безметиониновый | E124: Кол-во упаковок | F124: =SUM(G124:V124) -> 0
A125: Интерферон альфа-2b человеческий рекомбинантный | B125: Интерферон альфа-2b человеческий рекомбинантный | C125: 30 | D125: Интерферон альфа-2b человеческий рекомбинантный безметиониновый | E125: Форма выпуска
A126: Интерферон альфа-2b человеческий рекомбинантный | B126: Интерферон альфа-2b человеческий рекомбинантный | C126: 31 | D126: Лайфферон | E126: Минимальная цена
A127: Интерферон альфа-2b человеческий рекомбинантный | B127: Интерферон альфа-2b человеческий рекомбинантный | C127: 31 | D127: Лайфферон | E127: Максимальная цена
A128: Интерферон альфа-2b человеческий рекомбинантный | B128: Интерферон альфа-2b человеческий рекомбинантный | C128: 31 | D128: Лайфферон | E128: Кол-во упаковок | F128: =SUM(G128:V128) -> 0
A129: Интерферон альфа-2b человеческий рекомбинантный | B129: Интерферон альфа-2b человеческий рекомбинантный | C129: 31 | D129: Лайфферон | E129: Форма выпуска
A130: Интерферон альфа-2b человеческий рекомбинантный | B130: Интерферон альфа-2b человеческий рекомбинантный | C130: 32 | D130: Реальдирон | E130: Минимальная цена
A131: Интерферон альфа-2b человеческий рекомбинантный | B131: Интерферон альфа-2b человеческий рекомбинантный | C131: 32 | D131: Реальдирон | E131: Максимальная цена
A132: Интерферон альфа-2b человеческий рекомбинантный | B132: Интерферон альфа-2b человеческий рекомбинантный | C132: 32 | D132: Реальдирон | E132: Кол-во упаковок | F132: =SUM(G132:V132) -> 0
A133: Интерферон альфа-2b человеческий рекомбинантный | B133: Интерферон альфа-2b человеческий рекомбинантный | C133: 32 | D133: Реальдирон | E133: Форма выпуска
A134: 4 | B134: Интерферон гамма человеческий рекомбинантный | C134: 33 | D134: Ингарон | E134: Минимальная цена | F134: 381 | Q134: 381
A135: Интерферон гамма человеческий рекомбинантный | B135: Интерферон гамма человеческий рекомбинантный | C135: 33 | D135: Ингарон | E135: Максимальная цена | F135: 381 | Q135: 381
A136: Интерферон гамма человеческий рекомбинантный | B136: Интерферон гамма человеческий рекомбинантный | C136: 33 | D136: Ингарон | E136: Кол-во упаковок | F136: =SUM(G136:V136) -> 2 | Q136: 2
A137: Интерферон гамма человеческий рекомбинантный | B137: Интерферон гамма человеческий рекомбинантный | C137: 33 | D137: Ингарон | E137: Форма выпуска | F137: лиофизилат для раствора | Q137: порошок
A138: Интерферон гамма человеческий рекомбинантный | B138: Интерферон гамма человеческий рекомбинантный | C138: 34 | D138: Интерферон гамма человеческий рекомбинантный, интраназальная форма | E138: Минимальная цена
A139: Интерферон гамма человеческий рекомбинантный | B139: Интерферон гамма человеческий рекомбинантный | C139: 34 | D139: Интерферон гамма человеческий рекомбинантный, интраназальная форма | E139: Максимальная цена
A140: Интерферон гамма человеческий рекомбинантный | B140: Интерферон гамма человеческий рекомбинантный | C140: 34 | D140: Интерферон гамма человеческий рекомбинантный, интраназальная форма | E140: Кол-во упаковок | F140: =SUM(G140:V140) -> 0
A141: Интерферон гамма человеческий рекомбинантный | B141: Интерферон гамма человеческий рекомбинантный | C141: 34 | D141: Интерферон гамма человеческий рекомбинантный, интраназальная форма | E141: Форма выпуска
A142: 5 | B142: Кагоцел | C142: 35 | D142: Кагоцел | E142: Минимальная цена | F142: 260 | G142: 260 | H142: 275 | I142: 260 | J142: 500 | K142: 280 | L142: 275 | N142: 316 | O142: 290 | Q142: 335 | V142: 555
A143: Кагоцел | B143: Кагоцел | C143: 35 | D143: Кагоцел | E143: Максимальная цена | F143: 889 | G143: 520 | H143: 830 | I143: 540 | J143: 500 | K143: 625 | L143: 535 | N143: 593 | O143: 290 | Q143: 889 | V143: 555
A144: Кагоцел | B144: Кагоцел | C144: 35 | D144: Кагоцел | E144: Кол-во упаковок | F144: =SUM(G144:V144) -> 112 | G144: 5 | H144: 7 | I144: 31 | J144: 8 | K144: 6 | L144: 18 | N144: 2 | O144: 6 | Q144: 15 | V144: 14
A145: Кагоцел | B145: Кагоцел | C145: 35 | D145: Кагоцел | E145: Форма выпуска | F145: таблетки | G145: таблетки | H145: таблетки | I145: таблетки | J145: таблетки | K145: таблетки | L145: таблетки | N145: таблетки | O145: таблетки | Q145: таблетки | V145: таблетки
A146: 6 | B146: Осельтамивир | C146: 36 | D146: Гриптера | E146: Минимальная цена
A147: Осельтамивир | B147: Осельтамивир | C147: 36 | D147: Гриптера | E147: Максимальная цена
A148: Осельтамивир | B148: Осельтамивир | C148: 36 | D148: Гриптера | E148: Кол-во упаковок | F148: =SUM(G148:V148) -> 0
A149: Осельтамивир | B149: Осельтамивир | C149: 36 | D149: Гриптера | E149: Форма выпуска
A150: Осельтамивир | B150: Осельтамивир | C150: 37 | D150: Инфлюцеин | E150: Минимальная цена | F150: 577 | L150: 577 | O150: 611
A151: Осельтамивир | B151: Осельтамивир | C151: 37 | D151: Инфлюцеин | E151: Максимальная цена | F151: 611 | L151: 577 | O151: 611
A152: Осельтамивир | B152: Осельтамивир | C152: 37 | D152: Инфлюцеин | E152: Кол-во упаковок | F152: =SUM(G152:V152) -> 5 | L152: 3 | O152: 2
A153: Осельтамивир | B153: Осельтамивир | C153: 37 | D153: Инфлюцеин | E153: Форма выпуска | F153: капсулы, таблетки | L153: капсулы | O153: таблетки
A154: Осельтамивир | B154: Осельтамивир | C154: 38 | D154: Номидес | E154: Минимальная цена | F154: 420 | G154: 905 | I154: 875 | K154: 955 | Q154: 420 | V154: 976
A155: Осельтамивир | B155: Осельтамивир | C155: 38 | D155: Номидес | E155: Максимальная цена | F155: 976 | G155: 905 | I155: 890 | K155: 955 | Q155: 972 | V155: 976
A156: Осельтамивир | B156: Осельтамивир | C156: 38 | D156: Номидес | E156: Кол-во упаковок | F156: =SUM(G156:V156) -> 41 | G156: 2 | I156: 20 | K156: 1 | Q156: 13 | V156: 5
A157: Осельтамивир | B157: Осельтамивир | C157: 38 | D157: Номидес | E157: Форма выпуска | F157: капсулы | G157: капсулы | I157: капсулы | K157: капсулы | Q157: капсулы | V157: капсулы
A158: Осельтамивир | B158: Осельтамивир | C158: 39 | D158: Осельтамивир | E158: Минимальная цена | F158: 1189 | V158: 1189
A159: Осельтамивир | B159: Осельтамивир | C159: 39 | D159: Осельтамивир | E159: Максимальная цена | F159: 1189 | V159: 1189
A160: Осельтамивир | B160: Осельтамивир | C160: 39 | D160: Осельтамивир | E160: Кол-во упаковок | F160: =SUM(G160:V160) -> 2 | V160: 2
A161: Осельтамивир | B161: Осельтамивир | C161: 39 | D161: Осельтамивир | E161: Форма выпуска | F161: капсулы | V161: капсулы
A162: Осельтамивир | B162: Осельтамивир | C162: 40 | D162: ОСЕЛЬТАМИВИР | E162: Минимальная цена | F162: 662 | L162: 1045 | O162: 662
A163: Осельтамивир | B163: Осельтамивир | C163: 40 | D163: ОСЕЛЬТАМИВИР | E163: Максимальная цена | F163: 1063 | L163: 1063 | O163: 662
A164: Осельтамивир | B164: Осельтамивир | C164: 40 | D164: ОСЕЛЬТАМИВИР | E164: Кол-во упаковок | F164: =SUM(G164:V164) -> 10 | L164: 6 | O164: 4
A165: Осельтамивир | B165: Осельтамивир | C165: 40 | D165: ОСЕЛЬТАМИВИР | E165: Форма выпуска | F165: капсулы | L165: капсулы | O165: капсулы
A166: Осельтамивир | B166: Осельтамивир | C166: 41 | D166: АВЕКСИМА | E166: Минимальная цена | F166: 816 | N166: 816
A167: Осельтамивир | B167: Осельтамивир | C167: 41 | D167: АВЕКСИМА | E167: Максимальная цена | F167: 816 | N167: 816
A168: Осельтамивир | B168: Осельтамивир | C168: 41 | D168: АВЕКСИМА | E168: Кол-во упаковок | F168: =SUM(G168:V168) -> 3 | N168: 3
A169: Осельтамивир | B169: Осельтамивир | C169: 41 | D169: АВЕКСИМА | E169: Форма выпуска | F169: таблетки | N169: таблетки
A170: Осельтамивир | B170: Осельтамивир | C170: 42 | D170: Осельтамивир Канон | E170: Минимальная цена
A171: Осельтамивир | B171: Осельтамивир | C171: 42 | D171: Осельтамивир Канон | E171: Максимальная цена
A172: Осельтамивир | B172: Осельтамивир | C172: 42 | D172: Осельтамивир Канон | E172: Кол-во упаковок | F172: =SUM(G172:V172) -> 0
A173: Осельтамивир | B173: Осельтамивир | C173: 42 | D173: Осельтамивир Канон | E173: Форма выпуска
A174: Осельтамивир | B174: Осельтамивир | C174: 43 | D174: Осельтамивир-Акрихин | E174: Минимальная цена | F174: 983 | G174: 983 | N174: 1086
A175: Осельтамивир | B175: Осельтамивир | C175: 43 | D175: Осельтамивир-Акрихин | E175: Максимальная цена | F175: 1086 | G175: 1045 | N175: 1086
A176: Осельтамивир | B176: Осельтамивир | C176: 43 | D176: Осельтамивир-Акрихин | E176: Кол-во упаковок | F176: =SUM(G176:V176) -> 3 | G176: 2 | N176: 1
A177: Осельтамивир | B177: Осельтамивир | C177: 43 | D177: Осельтамивир-Акрихин | E177: Форма выпуска | F177: капсулы, таблетки | G177: капсулы | N177: таблетки
A178: Осельтамивир | B178: Осельтамивир | C178: 44 | D178: Осельтамивир-натив | E178: Минимальная цена
A179: Осельтамивир | B179: Осельтамивир | C179: 44 | D179: Осельтамивир-натив | E179: Максимальная цена
A180: Осельтамивир | B180: Осельтамивир | C180: 44 | D180: Осельтамивир-натив | E180: Кол-во упаковок | F180: =SUM(G180:V180) -> 0
A181: Осельтамивир | B181: Осельтамивир | C181: 44 | D181: Осельтамивир-натив | E181: Форма выпуска
A182: Осельтамивир | B182: Осельтамивир | C182: 45 | D182: Осельтамивира фосфат | E182: Минимальная цена
A183: Осельтамивир | B183: Осельтамивир | C183: 45 | D183: Осельтамивира фосфат | E183: Максимальная цена
A184: Осельтамивир | B184: Осельтамивир | C184: 45 | D184: Осельтамивира фосфат | E184: Кол-во упаковок | F184: =SUM(G184:V184) -> 0
A185: Осельтамивир | B185: Осельтамивир | C185: 45 | D185: Осельтамивира фосфат | E185: Форма выпуска
A186: Осельтамивир | B186: Осельтамивир | C186: 46 | D186: РИНИВИРА | E186: Минимальная цена
A187: Осельтамивир | B187: Осельтамивир | C187: 46 | D187: РИНИВИРА | E187: Максимальная цена
A188: Осельтамивир | B188: Осельтамивир | C188: 46 | D188: РИНИВИРА | E188: Кол-во упаковок | F188: =SUM(G188:V188) -> 0
A189: Осельтамивир | B189: Осельтамивир | C189: 46 | D189: РИНИВИРА | E189: Форма выпуска
A190: Осельтамивир | B190: Осельтамивир | C190: 47 | D190: Сельтавир | E190: Минимальная цена | F190: 930 | N190: 930
A191: Осельтамивир | B191: Осельтамивир | C191: 47 | D191: Сельтавир | E191: Максимальная цена | F191: 930 | N191: 930
A192: Осельтамивир | B192: Осельтамивир | C192: 47 | D192: Сельтавир | E192: Кол-во упаковок | F192: 1 | N192: 1
A193: Осельтамивир | B193: Осельтамивир | C193: 47 | D193: Сельтавир | E193: Форма выпуска | F193: таблетки | N193: таблетки
A194: Осельтамивир | B194: Осельтамивир | C194: 48 | D194: Тамифлю | E194: Минимальная цена | F194: 1100 | K194: 1100 | V194: 1125
A195: Осельтамивир | B195: Осельтамивир | C195: 48 | D195: Тамифлю | E195: Максимальная цена | F195: 1125 | K195: 1100 | V195: 1125
A196: Осельтамивир | B196: Осельтамивир | C196: 48 | D196: Тамифлю | E196: Кол-во упаковок | F196: =SUM(G196:V196) -> 4 | K196: 2 | V196: 2
A197: Осельтамивир | B197: Осельтамивир | C197: 48 | D197: Тамифлю | E197: Форма выпуска | F197: капсулы | K197: капсулы | V197: капсулы
A198: Осельтамивир | B198: Осельтамивир | C198: 49 | D198: ФЛУСТОП | E198: Минимальная цена
A199: Осельтамивир | B199: Осельтамивир | C199: 49 | D199: ФЛУСТОП | E199: Максимальная цена
A200: Осельтамивир | B200: Осельтамивир | C200: 49 | D200: ФЛУСТОП | E200: Кол-во упаковок | F200: =SUM(G200:V200) -> 0
... 429 more rows
